bitfinex-derivatives/quotes_SOLF0:USTF0_20250624
["timestamp","ask_amount","ask_price","bid_price","bid_amount"]
[1750808488249,9.68169335,145.43,145.41,6.8738]
[1750808488552,6.8726,145.44,145.41,6.8738]
[1750808488751,5.01835618,145.43,145.41,6.8738]
[1750808488952,6.8726,145.44,145.41,6.8738]
[1750808489250,10.27483794,145.45,145.41,6.8738]
[1750808489452,9.68132606,145.44,145.41,6.8738]
[1750808489651,10.27483794,145.45,145.41,6.8738]
[1750808489857,9.67955905,145.44,145.41,6.8738]
[1750808490153,10.27483794,145.45,145.41,6.8738]
[1750808490449,9.67910748,145.44,145.41,6.8738]
[1750808490651,10.27483794,145.45,145.41,6.8738]
[1750808490847,9.67910937,145.44,145.41,6.8738]
[1750808491154,6.8727,145.44,145.41,6.8738]
[1750808494454,6.8731,145.43,145.4,6.8742]
[1750808495254,6.8728,145.44,145.41,6.874]
[1750808495459,9.67392096,145.43,145.41,6.874]
[1750808495658,6.8728,145.44,145.41,6.874]
[1750808495857,9.67385704,145.43,145.41,6.874]
[1750808496158,6.8728,145.44,145.41,6.874]
[1750808496359,5.01259928,145.43,145.41,6.874]
[1750808496558,6.8725,145.45,145.37,35.34]
[1750808496748,9.68266727,145.44,145.37,48.02954774]
[1750808496945,3.40243794,145.45,145.37,48.02954774]
[1750808497149,16.55519073,145.44,145.41,6.874]
[1750808497449,6.8728,145.44,145.41,6.874]
[1750808497650,6.8732,145.43,145.4,6.8744]
[1750808499460,10.27563794,145.43,145.4,6.8744]
[1750808500063,6.8738,145.42,145.39,6.8748]
[1750808501453,3.40243794,145.43,145.35,75.66073273]
[1750808501454,13.12086276,145.41,145.35,75.66073273]
[1750808501655,3.40243794,145.36,145.31,12.68954774]
[1750808501858,10.27903794,145.36,145.33,6.8776]
[1750808502059,3.40243794,145.36,145.33,6.8776]
[1750808502261,2.18056633,145.34,145.33,6.8776]
[1750808502655,2.18056633,145.34,145.32,6.878]
[1750808503063,2.18056633,145.33,145.32,6.878]
[1750808503260,2.18056633,145.33,145.31,6.8785]
[1750808503561,2.18056633,145.32,145.29,4.7278]
[1750808503861,2.18056633,145.3,145.29,6.8797]
[1750808504361,45.58615293,145.33,145.29,6.8793]
[1750808504557,6.8785,145.32,145.26,37.6211]
[1750808504954,3.40835293,145.31,145.26,37.6211]
[1750808505462,3.40835293,145.31,145.27,6.8802]
[1750808505657,3.40835293,145.29,145.24,4.6532]
[1750808506054,3.40835293,145.29,145.26,6.881]
[1750808506362,38.70835293,145.29,145.26,6.881]
[1750808506556,38.70835293,145.29,145.27,6.8806]
[1750808506755,35.3,145.29,145.24,4.6532]
[1750808506960,38.70835293,145.34,145.27,3.40835293]
[1750808507153,38.70835293,145.34,145.28,2.2553]
[1750808507354,38.70835293,145.34,145.32,6.8782]
[1750808507963,38.70835293,145.34,145.31,6.8786]
[1750808508663,38.70835293,145.34,145.32,6.8782]
[1750808509059,35.3,145.34,145.29,3.40835293]
[1750808509263,3.40835293,145.36,145.29,3.40835293]
[1750808509863,3.40835293,145.36,145.34,6.8773]
[1750808510570,35.3,145.37,145.35,6.8769]
[1750808510865,35.3,145.37,145.3,2.3035]
[1750808511367,35.3,145.37,145.34,6.877]
[1750808513262,42.1759,145.37,145.34,6.877]
[1750808513967,35.3,145.37,145.34,6.877]
[1750808515456,42.1759,145.37,145.34,6.877]
[1750808515771,3.40835293,145.36,145.33,6.8776]
[1750808520670,42.1759,145.37,145.3,4.7175]
[1750808520876,45.58425293,145.37,145.3,4.7175]
[1750808521270,45.58425293,145.37,145.33,6.8775]
[1750808521469,45.58425293,145.37,145.3,4.7175]
[1750808522372,45.58425293,145.37,145.34,6.8771]
[1750808523981,45.60425293,145.37,145.34,6.8771]
[1750808525477,38.72835293,145.37,145.34,6.8771]
[1750808527283,45.60425293,145.37,145.34,6.8771]
[1750808527684,6.8766,145.36,145.33,6.8776]
[1750808528283,45.60445293,145.37,145.33,6.8776]
[1750808528976,45.60445293,145.37,145.34,6.8773]
[1750808530988,38.72835293,145.37,145.35,6.8767]
[1750808531288,35.32,145.37,145.31,38.72835293]
[1750808531674,35.32,145.37,145.36,6.8764]
[1750808531875,34.3441,145.53,145.36,6.8764]
[1750808531876,3.40835293,145.46,145.36,42.12]
[1750808532080,35.24,145.47,145.4,3.40835293]
[1750808532289,38.64835293,145.5,145.47,6.8711]
[1750808532585,38.64835293,145.5,145.43,2.2087]
[1750808532586,3.40835293,145.48,145.43,2.2087]
[1750808532788,3.40835293,145.48,145.42,35.24]
[1750808532985,3.40835293,145.46,145.42,35.24]
[1750808533387,3.40835293,145.46,145.45,6.8721]
[1750808535777,3.40835293,145.48,145.46,6.8714]
[1750808535986,3.40835293,145.48,145.42,35.24]
[1750808536793,3.40835293,145.48,145.46,6.8714]
[1750808537792,3.40835293,145.48,145.45,6.8719]
[1750808538294,3.40835293,145.48,145.46,6.8716]
[1750808538694,3.40835293,145.48,145.42,35.24]
[1750808538991,3.40835293,145.48,145.45,6.8718]
[1750808540888,3.40835293,145.48,145.42,35.24]
[1750808541289,3.40835293,145.48,145.46,6.8713]
[1750808542695,3.40835293,145.48,145.45,6.8718]
[1750808543097,10.27915293,145.48,145.45,6.8718]
[1750808543895,38.64835293,145.5,145.42,38.64835293]
[1750808544083,38.64835293,145.5,145.43,4.6553]
[1750808544286,45.51815293,145.5,145.43,4.6553]
[1750808545089,45.51815293,145.5,145.47,6.8709]
[1750808545393,38.64835293,145.5,145.43,4.6553]
[1750808545998,38.64835293,145.5,145.47,6.8708]
[1750808546188,45.51815293,145.5,145.47,6.8708]
[1750808546389,35.24,145.5,145.44,3.40835293]
[1750808546997,35.24,145.5,145.48,6.8704]
[1750808547700,35.24,145.5,145.47,6.8709]
[1750808548393,42.1098,145.5,145.47,6.8709]
[1750808548596,35.24,145.5,145.48,6.8707]
[1750808549287,6.8697,145.51,145.48,6.8707]
[1750808549496,42.0897,145.51,145.48,6.8707]
[1750808551088,42.0897,145.51,145.49,6.8702]
[1750808551904,6.8697,145.51,145.48,6.8705]
[1750808552097,6.8697,145.51,145.44,5.75885293]
[1750808552398,639.55745293,145.52,145.49,6.8701]
[1750808552603,632.68835293,145.52,145.44,5.75885293]
[1750808553203,629.28,145.52,145.44,5.75885293]
[1750808553403,632.68835293,145.52,145.44,5.75885293]
[1750808553804,639.55745293,145.52,145.49,6.8702]
[1750808556002,45.49745293,145.52,145.49,6.8702]
[1750808557906,45.49745293,145.52,145.5,6.8697]
[1750808558407,45.49745293,145.52,145.49,6.87]
[1750808559002,38.62835293,145.52,145.5,6.8697]
[1750808559395,35.22,145.52,145.51,6.8693]
[1750808559599,35.22,145.52,145.46,38.62835293]
[1750808559797,3.40835293,145.54,145.46,38.62835293]
[1750808560106,10.27625293,145.54,145.46,38.62835293]
[1750808560499,10.27625293,145.54,145.51,6.8689]
[1750808562310,3.40835293,145.54,145.51,6.8689]
[1750808563315,10.27665293,145.54,145.51,6.8689]
[1750808564014,6.8686,145.53,145.51,6.8689]
[1750808564310,6.8686,145.53,145.5,6.8694]
[1750808567608,6.8689,145.52,145.49,6.8698]
[1750808567912,3.40835293,145.53,145.49,6.8698]
[1750808568213,6.8692,145.52,145.49,6.8698]
[1750808568914,6.8692,145.52,145.5,6.8698]
[1750808569610,35.16,145.58,145.49,3.39660056]
[1750808569820,38.55660056,145.58,145.49,3.39660056]
[1750808570013,38.55660056,145.58,145.55,6.8672]
[1750808570808,45.42260056,145.58,145.55,6.8672]
[1750808572117,45.42260056,145.58,145.56,6.8669]
[1750808576623,6.8665,145.57,145.55,6.8671]
[1750808581026,6.8669,145.56,145.54,6.8676]
[1750808581718,11.93563638,145.57,145.55,6.8674]
[1750808581922,6.8667,145.57,145.5,6.8175]
[1750808583012,6.8667,145.57,145.54,6.8676]
[1750808585128,6.8667,145.57,145.55,6.8671]
[1750808585425,35.16,145.58,145.52,3.39660056]
[1750808585628,35.16,145.58,145.56,6.8666]
[1750808586328,35.16,145.58,145.57,6.8665]
[1750808587033,35.16,145.58,145.5,10.21410056]
[1750808587222,3.39660056,145.57,145.5,10.21410056]
[1750808587531,3.39660056,145.57,145.55,6.8674]
[1750808587832,10.26330056,145.57,145.54,6.8677]
[1750808589818,42.0262,145.58,145.56,6.8669]
[1750808590018,38.55660056,145.58,145.5,10.21410056]
[1750808590230,3.39660056,145.56,145.5,10.21410056]
[1750808590430,3.39660056,145.56,145.54,6.8676]
[1750808590729,3.39660056,145.56,145.5,10.21410056]
[1750808590924,10.26390056,145.56,145.5,2.2387]
[1750808591129,3.39660056,145.56,145.5,2.2387]
[1750808591331,3.39660056,145.56,145.5,5.63530056]
[1750808591527,35.16,145.58,145.5,5.63530056]
[1750808591528,45.42300056,145.58,145.55,6.8674]
[1750808591926,45.42300056,145.58,145.5,5.63530056]
[1750808591927,38.55660056,145.58,145.5,5.63530056]
[1750808592131,38.55660056,145.58,145.56,6.8666]
[1750808592832,45.42270056,145.58,145.56,6.8666]
[1750808593933,6.8655,145.59,145.57,6.8665]
[1750808594137,3.39660056,145.59,145.57,6.8665]
[1750808595039,10.26230056,145.59,145.57,6.8665]
[1750808595939,41.9448,145.61,145.59,6.8653]
[1750808596130,38.47660056,145.61,145.53,3.39660056]
[1750808596736,6.8652,145.6,145.57,6.8662]
[1750808597236,45.34140056,145.61,145.58,6.8659]
[1750808597539,45.34140056,145.61,145.53,3.39660056]
[1750808597737,45.34140056,145.61,145.58,6.8657]
[1750808599033,35.08,145.61,145.53,3.39660056]
[1750808599635,35.08,145.61,145.59,6.8652]
[1750808601140,41.945,145.61,145.58,6.8658]
[1750808601341,5.6405988,145.65,145.58,3.39660056]
[1750808601635,5.6405988,145.65,145.6,3.39660056]
[1750808602440,5.6405988,145.65,145.64,6.8632]
[1750808602639,9.88e-05,145.65,145.64,10.25980056]
[1750808602849,10.12405801,145.72,145.64,3.39660056]
[1750808603140,3.39660056,145.71,145.63,3.39660056]
[1750808603335,3.39660056,145.71,145.62,35.08]
[1750808603532,10.25680056,145.71,145.63,3.39660056]
[1750808603730,3.39660056,145.71,145.62,35.08]
[1750808603928,38.47660056,145.73,145.65,3.39660056]
[1750808604136,35.08,145.73,145.62,35.08]
[1750808604341,35.08,145.73,145.65,3.39660056]
[1750808604641,35.08,145.73,145.7,6.8603]
[1750808604642,38.47660056,145.73,145.7,6.8603]
[1750808604832,38.47660056,145.73,145.66,4.6669]
[1750808604833,3.39660056,145.77,145.69,3.39660056]
[1750808605238,8.46555886,145.78,145.71,3.39660056]
[1750808605830,3.39660056,145.78,145.71,3.39660056]
[1750808606141,5.13048687,145.77,145.69,3.39660056]
[1750808606332,3.39660056,145.76,145.67,35.08]
[1750808606534,3.39660056,145.74,145.69,6.8608]
[1750808607145,8.52485431,145.74,145.67,35.08]
[1750808607359,3.39660056,145.72,145.67,35.08]
[1750808607538,3.39660056,145.72,145.69,6.8604]
[1750808607736,3.39660056,145.72,145.66,4.6669]
[1750808608044,3.39660056,145.7,145.66,2.337]
[1750808609238,3.39660056,145.7,145.63,37.4065]
[1750808609446,6.8613,145.68,145.65,6.8624]
[1750808609837,3.39660056,145.7,145.63,37.4065]
[1750808611346,10.25710056,145.7,145.63,37.4065]
[1750808611842,10.25710056,145.7,145.66,6.8619]
[1750808612043,6.861,145.69,145.66,6.8619]
[1750808612240,3.39660056,145.7,145.63,37.4065]
[1750808612435,3.39660056,145.68,145.63,37.4065]
[1750808612949,6.8621,145.67,145.64,6.8629]
[1750808613149,3.39660056,145.69,145.62,66.61927361]
[1750808613641,3.39660056,145.69,145.65,6.8624]
[1750808613848,10.25870056,145.67,145.62,4.5359]
[1750808615047,10.25870056,145.67,145.64,6.8627]
[1750808615240,45.31870056,145.67,145.64,6.8627]
[1750808616147,6.8622,145.66,145.63,6.8635]
[1750808616544,45.31850056,145.67,145.64,6.8631]
[1750808617046,38.45660056,145.67,145.62,2.3258]
[1750808617748,38.45660056,145.67,145.6,35.06]
[1750808617948,3.39660056,145.65,145.58,4.6111]
[1750808618144,10.25960056,145.65,145.61,6.8642]
[1750808618344,3.39660056,145.63,145.58,2.4158]
[1750808618543,38.45660056,145.63,145.58,2.4158]
[1750808619856,45.32030056,145.63,145.58,2.4158]
[1750808620354,38.45660056,145.63,145.6,6.8648]
[1750808620550,38.45660056,145.63,145.58,2.4158]
[1750808620750,38.45660056,145.63,145.59,6.8652]
[1750808621452,45.32050056,145.63,145.6,6.865]
[1750808622656,45.32050056,145.63,145.59,6.8653]
[1750808622851,6.8642,145.62,145.59,6.8653]
[1750808623046,38.45660056,145.63,145.58,2.4158]
[1750808623252,38.45660056,145.63,145.59,6.8651]
[1750808623557,45.32050056,145.63,145.58,2.4158]
[1750808623756,38.45660056,145.63,145.59,6.8653]
[1750808623957,6.8641,145.62,145.59,6.8653]
[1750808624547,6.8641,145.62,145.6,6.865]
[1750808628758,6.8641,145.62,145.59,6.8653]
[1750808629064,38.45660056,145.63,145.55,40.72930056]
[1750808629251,38.45660056,145.63,145.58,6.8657]
[1750808629451,10.26120056,145.61,145.58,6.8657]
[1750808629861,3.39660056,145.61,145.57,6.8662]
[1750808630061,3.39660056,145.59,145.57,6.8662]
[1750808630755,10.26220056,145.59,145.56,6.8667]
[1750808631463,6.866,145.58,145.56,6.8667]
[1750808632062,6.866,145.58,145.55,6.8672]
[1750808632252,6.866,145.58,145.52,40.194]
[1750808633164,6.866,145.58,145.55,6.8672]
[1750808633854,6.866,145.58,145.52,4.554]
[1750808634262,39.03660056,145.59,145.52,7.95060056]
[1750808634459,35.64,145.59,145.52,4.554]
[1750808634649,35.64,145.59,145.53,2.2867]
[1750808635155,35.64,145.59,145.57,6.8662]
[1750808637162,35.64,145.59,145.58,6.866]
[1750808640372,35.64,145.62,145.6,6.8647]
[1750808640769,35.64,145.62,145.56,3.39660056]
[1750808641268,42.5041,145.62,145.56,3.39660056]
[1750808641468,42.5041,145.62,145.6,6.8649]
[1750808641867,42.5041,145.62,145.56,3.39660056]
[1750808641868,35.64,145.62,145.56,3.39660056]
[1750808642169,35.64,145.62,145.61,6.8646]
[1750808642669,35.64,145.62,145.6,6.8648]
[1750808643870,35.64,145.62,145.61,6.8646]
[1750808644468,35.64,145.62,145.6,6.8648]
[1750808646573,35.64,145.62,145.57,2.2048]
[1750808646773,35.64,145.62,145.54,35.64]
[1750808646964,3.39660056,145.61,145.54,35.64]
[1750808647164,10.26140056,145.61,145.58,6.8658]
[1750808647670,6.8652,145.6,145.57,6.8662]
[1750808647870,3.39660056,145.59,145.53,4.4914]
[1750808648067,3.39660056,145.57,145.53,4.4914]
[1750808648372,10.26330056,145.57,145.54,6.8676]
[1750808649070,10.26330056,145.57,145.55,6.8673]
[1750808650575,39.03660056,145.58,145.55,6.867]
[1750808651477,6.8665,145.57,145.55,6.867]
[1750808651777,39.03660056,145.58,145.56,6.8668]
[1750808652072,35.64,145.58,145.53,2.2047]
[1750808652569,39.03660056,145.58,145.55,6.8671]
[1750808652877,6.8667,145.57,145.54,6.8676]
[1750808653071,6.8667,145.57,145.52,2.212]
[1750808653479,6.8667,145.57,145.55,6.8673]
[1750808655978,35.64,145.58,145.52,5.60860056]
[1750808656581,35.64,145.58,145.56,6.8666]
[1750808656981,35.64,145.58,145.52,5.60860056]
[1750808657482,35.64,145.58,145.57,6.8665]
[1750808657684,35.64,145.58,145.52,5.60860056]
[1750808658385,35.64,145.58,145.56,6.8666]
[1750808658982,35.64,145.58,145.57,6.8665]
[1750808662296,40.7525683,145.58,145.57,6.8665]
[1750808662597,40.7525683,145.58,145.56,6.8667]
[1750808662798,35.64,145.58,145.56,6.8667]
[1750808663899,35.64,145.58,145.57,6.8665]
[1750808664196,40.75452801,145.58,145.53,2.1837]
[1750808664396,35.64,145.58,145.53,2.1837]
[1750808664598,35.64,145.58,145.56,6.8666]
[1750808666499,42.506,145.58,145.56,6.8666]
[1750808666801,45.90260056,145.58,145.56,6.8666]
[1750808667298,5.07433638,145.57,145.56,6.8666]
[1750808667798,45.90260056,145.58,145.56,6.8666]
[1750808667998,39.03660056,145.58,145.57,6.8665]
[1750808668198,44.11060992,145.58,145.57,6.8665]
[1750808672216,40.71400936,145.58,145.57,6.8665]
[1750808677211,35.64,145.58,145.57,6.8665]
[1750808677403,40.71699873,145.58,145.57,6.8665]
[1750808677604,35.64,145.58,145.57,6.8665]
[1750808677912,36.0,145.61,145.55,3.39660056]
[1750808678106,5.07543677,145.6,145.55,3.39660056]
[1750808678308,36.0,145.61,145.57,3.39660056]
[1750808678916,36.0,145.61,145.6,6.865]
[1750808681810,593.12,145.63,145.62,6.8641]
[1750808682021,5.07870357,145.63,145.62,6.8641]
[1750808682316,3.39660056,145.67,145.59,3.39660056]
[1750808682512,45.66896996,145.66,145.59,3.39660056]
[1750808682711,5.07779622,145.65,145.59,3.39660056]
[1750808683012,36.0,145.66,145.59,3.39660056]
[1750808683318,46.25900056,145.66,145.63,6.8633]
[1750808683616,5.07268627,145.65,145.63,6.8633]
[1750808683817,39.39660056,145.66,145.64,6.8629]
[1750808687718,46.25880056,145.66,145.63,6.8634]
[1750808688018,36.0,145.66,145.59,3.39660056]
[1750808688320,39.39660056,145.66,145.59,3.39660056]
[1750808688713,39.39660056,145.66,145.64,6.8629]
[1750808689119,36.0,145.66,145.65,6.8627]
[1750808691415,36.0,145.66,145.64,6.8628]
[1750808692019,36.0,145.66,145.59,35.74]
[1750808692621,36.0,145.66,145.64,6.8629]
[1750808694014,42.8624,145.66,145.64,6.8629]
[1750808696529,36.0,145.66,145.65,6.8627]
[1750808697027,36.0,145.66,145.6,3.39660056]
[1750808697226,36.0,145.66,145.64,6.8629]
[1750808698026,42.8622,145.66,145.64,6.8629]
[1750808699631,36.0,145.66,145.64,6.8629]
[1750808699819,36.0,145.66,145.65,6.8627]
[1750808700016,36.0,145.66,145.6,3.39660056]
[1750808700532,36.0,145.66,145.64,6.8629]
[1750808701029,36.0,145.66,145.65,6.8627]
[1750808703121,40.4722,145.69,145.61,2.3528]
[1750808703326,40.4722,145.69,145.62,3.39660056]
[1750808703529,39.13660056,145.69,145.62,3.39660056]
[1750808704032,45.99740056,145.69,145.62,3.39660056]
[1750808704934,45.99740056,145.69,145.66,6.862]
[1750808705319,39.13660056,145.69,145.61,5.74940056]
[1750808705526,10.25860056,145.67,145.64,6.8627]
[1750808706025,6.8615,145.68,145.65,6.8627]
[1750808706229,3.39660056,145.68,145.61,5.74940056]
[1750808706731,3.39660056,145.68,145.66,6.862]
[1750808708133,10.25790056,145.68,145.65,6.8624]
[1750808708339,3.39660056,145.68,145.65,6.8624]
[1750808709422,10.25820056,145.68,145.66,6.8622]
[1750808709835,10.25820056,145.68,145.61,5.74940056]
[1750808710336,10.25820056,145.68,145.65,6.8624]
[1750808710937,10.25820056,145.68,145.66,6.8622]
[1750808711137,6.8618,145.67,145.61,5.74940056]
[1750808711539,40.33651604,145.69,145.61,2.3528]
[1750808711836,10.25860056,145.67,145.61,2.3528]
[1750808712639,6.8623,145.66,145.61,2.3528]
[1750808712934,6.8623,145.66,145.63,6.8634]
[1750808713236,6.8623,145.66,145.61,2.3528]
[1750808713932,10.25860056,145.67,145.64,6.8629]
[1750808714135,4.59522749,145.68,145.61,5.74940056]
[1750808714437,39.13660056,145.69,145.61,5.74940056]
[1750808714623,11.95290054,145.68,145.65,6.8622]
[1750808714829,6.8613,145.68,145.61,5.74940056]
[1750808715131,50.59280259,145.69,145.66,6.862]
[1750808715335,5.09151303,145.68,145.66,6.862]
[1750808715537,45.99760056,145.69,145.66,6.862]
[1750808715741,5.09151303,145.68,145.66,6.862]
[1750808715928,45.99760056,145.69,145.66,6.862]
[1750808716128,5.09151303,145.68,145.66,6.862]
[1750808716329,45.99760056,145.69,145.66,6.862]
[1750808716528,5.0919419,145.68,145.66,6.862]
[1750808716724,45.99760056,145.69,145.66,6.862]
[1750808716940,5.0919419,145.68,145.66,6.862]
[1750808717137,45.99760056,145.69,145.66,6.862]
[1750808717338,5.08864535,145.68,145.66,6.862]
[1750808717637,45.99760056,145.69,145.66,6.862]
[1750808717828,5.08860914,145.68,145.66,6.862]
[1750808718025,6.8614,145.68,145.66,6.862]
[1750808720241,5.09504414,145.67,145.66,6.862]
[1750808720635,6.8614,145.68,145.66,6.862]
[1750808720831,5.09500824,145.67,145.66,6.862]
[1750808721937,45.99760056,145.69,145.67,6.8617]
[1750808722139,9.71283077,145.68,145.67,6.8617]
[1750808722741,5.10260077,145.68,145.67,6.8617]
[1750808723530,2.3591,145.72,145.69,6.8606]
[1750808723531,3.39660056,145.71,145.69,6.8606]
[1750808723735,9.7216485,145.7,145.69,6.8606]
[1750808724037,5.10682948,145.7,145.69,6.8606]
[1750808724729,35.54,145.72,145.7,6.8603]
[1750808724928,5.10307081,145.71,145.7,6.8603]
[1750808725443,9.71837134,145.71,145.7,6.8603]
[1750808727244,5.10307081,145.71,145.7,6.8603]
[1750808727747,5.10307081,145.71,145.69,6.8606]
[1750808728048,42.3995,145.72,145.69,6.8606]
[1750808728245,5.11521531,145.71,145.69,6.8606]
[1750808728447,42.3995,145.72,145.69,6.8606]
[1750808728945,5.11514225,145.71,145.7,6.8603]
[1750808729745,5.11268195,145.71,145.7,6.8603]
[1750808731043,5.11268195,145.71,145.69,6.8606]
[1750808731238,38.93660056,145.73,145.69,6.8606]
[1750808731438,9.73795672,145.72,145.69,6.8606]
[1750808731738,5.11987649,145.71,145.69,6.8606]
[1750808731945,45.79580056,145.73,145.7,6.86]
[1750808732145,9.7379578,145.72,145.7,6.86]
[1750808732340,45.79550056,145.73,145.7,6.86]
[1750808732546,5.11805951,145.72,145.7,6.86]
[1750808732750,45.79550056,145.73,145.7,6.86]
[1750808733046,5.11809577,145.72,145.7,6.86]
[1750808733241,45.79550056,145.73,145.7,6.86]
[1750808733440,5.11808649,145.72,145.7,6.86]
[1750808733751,45.79550056,145.73,145.7,6.86]
[1750808734050,5.11819375,145.72,145.7,6.86]
[1750808734248,38.93660056,145.73,145.7,6.86]
[1750808734448,5.11801589,145.72,145.7,6.86]
[1750808734650,38.93660056,145.73,145.7,6.86]
[1750808734844,5.11807865,145.72,145.71,6.8599]
[1750808737648,5.11807865,145.72,145.7,6.8601]
[1750808737951,45.79550056,145.73,145.7,6.8601]
[1750808738151,5.11997072,145.72,145.7,6.8601]
[1750808738450,45.79550056,145.73,145.7,6.8601]
[1750808738750,11.97842131,145.72,145.69,6.8606]
[1750808738950,5.11892131,145.71,145.67,2.3229]
[1750808739252,6.8595,145.72,145.67,2.3229]
[1750808739444,35.54,145.73,145.67,2.3229]
[1750808739646,5.11888561,145.72,145.67,2.3229]
[1750808739849,35.54,145.73,145.67,2.3229]
[1750808740050,5.11916835,145.72,145.7,6.86]
[1750808740255,35.54,145.73,145.7,6.86]
[1750808740438,5.11920458,145.72,145.7,6.86]
[1750808740643,35.54,145.73,145.71,6.8598]
[1750808740848,5.11924082,145.72,145.71,6.8598]
[1750808741838,35.54,145.73,145.72,6.8594]
[1750808742042,40.6584978,145.73,145.72,6.8594]
[1750808742246,42.82729821,145.73,145.72,6.8594]
[1750808742447,40.6584978,145.73,145.72,6.8594]
[1750808742752,42.82729821,145.73,145.72,6.8594]
[1750808743249,42.82717976,145.73,145.72,6.8594]
[1750808744454,42.82717976,145.73,145.67,37.8429]
[1750808744645,2.16880041,145.7,145.67,35.52]
[1750808745552,2.16880041,145.71,145.69,6.8604]
[1750808745849,11.47334729,145.72,145.69,6.8604]
[1750808745850,6.8596,145.72,145.69,6.8604]
[1750808746051,7.25513888,145.71,145.7,6.8603]
[1750808746950,11.86948139,145.71,145.67,35.52]
[1750808747144,2.16880041,145.68,145.65,2.16880041]
[1750808747453,2.16880041,145.68,145.64,37.42880041]
[1750808747641,2.16880041,145.68,145.67,6.8617]
[1750808749747,2.16880041,145.68,145.62,2.3267]
[1750808750052,2.16880041,145.65,145.62,2.3267]
[1750808750244,3.39251666,145.67,145.62,2.3267]
[1750808751651,35.26,145.69,145.63,3.39251666]
[1750808752540,35.26,145.69,145.67,6.8614]
[1750808754055,35.26,145.69,145.63,3.39251666]
[1750808755252,35.26,145.69,145.67,6.8615]
[1750808756753,35.26,145.69,145.68,6.8613]
[1750808756951,40.33436931,145.69,145.68,6.8613]
[1750808757952,40.33436931,145.69,145.67,6.8615]
[1750808758153,35.26,145.69,145.67,6.8615]
[1750808759259,5.07698057,145.68,145.66,6.862]
[1750808759454,42.1212,145.69,145.66,6.862]
[1750808759651,5.07701685,145.68,145.66,6.862]
[1750808759853,38.65251666,145.69,145.66,6.862]
[1750808760055,9.69071593,145.68,145.66,6.862]
[1750808760256,38.65251666,145.69,145.66,6.862]
[1750808760462,16.55201542,145.68,145.66,6.862]
[1750808760760,38.65251666,145.69,145.66,6.862]
[1750808760956,9.66794115,145.68,145.66,6.862]
[1750808761169,45.51361666,145.69,145.66,6.862]
[1750808761361,9.66794114,145.68,145.66,6.862]
[1750808761556,42.1211,145.69,145.67,6.8617]
[1750808761748,5.06074021,145.68,145.67,6.8617]
[1750808762160,35.26,145.69,145.68,6.8613]
[1750808762462,40.32062644,145.69,145.62,18.31209799]
[1750808762762,35.26,145.69,145.62,5.71921666]
[1750808762964,42.1209,145.69,145.67,6.8615]
[1750808763662,5.06070313,145.68,145.62,5.71921666]
[1750808763855,42.1209,145.69,145.62,5.71921666]
[1750808764054,5.06070311,145.68,145.62,5.71921666]
[1750808764255,35.26,145.69,145.67,6.8615]
[1750808764463,5.06133461,145.68,145.67,6.8615]
[1750808765458,35.26,145.69,145.67,6.8615]
[1750808765666,35.26,145.69,145.68,6.8613]
[1750808765965,40.32122709,145.69,145.68,6.8613]
[1750808766259,40.32122709,145.69,145.67,6.8615]
[1750808766468,35.26,145.69,145.67,6.8615]
[1750808768465,35.26,145.69,145.68,6.8613]
[1750808768766,40.32223734,145.69,145.68,6.8613]
[1750808769158,35.26,145.69,145.68,6.8613]
[1750808769352,40.32170255,145.69,145.68,6.8613]
[1750808770166,5.06170255,145.69,145.68,6.8613]
[1750808770466,37.42927036,145.72,145.7,6.8599]
[1750808770667,5.06084038,145.71,145.7,6.8599]
[1750808771165,35.26,145.72,145.71,6.8599]
[1750808773869,2.16927036,145.74,145.72,6.8594]
[1750808774073,7.22443478,145.73,145.72,6.8594]
[1750808774271,5.05512824,145.73,145.72,6.8594]